[Event "Skagerrak Kragero 2022"]
[Site "Kragero"]
[Date "2022.06.03"]
[Round "3.2"]
[White "Machlik, Monika"]
[Black "Sagafos, Magne"]
[Result "0-1"]
[ECO "E62"]
[WhiteElo "2134"]
[BlackElo "2361"]
[Annotator "TA"]
[PlyCount "88"]
[EventDate "2022.06.02"]
[EventType "tourn"]
[EventCountry "NOR"]
[SourceTitle "playchess.com"]
[Source "ChessBase"]
[SourceQuality "1"]
[TimeControl "5400+30"]

{[%evp 13,88,28,43,20,51,49,58,22,29,-100,-95,-92,-100,-97,-102,-195,-162,-164,-164,-156,-155,-187,-148,-145,-136,-173,-170,-194,-172,-176,-177,-184,-177,-223,-221,-220,-226,-227,-219,-225,-212,-208,-204,-207,-199,-352,-362,-354,-359,-364,-364,-364,-364,-364,-351,-364,-351,-351,-348,-385,-335,-347,-303,-531,-516,-705,-606,-646,-627,-1028,-1003,-1360,-921,-29977,-29976,-29984,-29984]} 1. d4 {Radjabov,T} Nf6 2. c4 g6 3. Nc3 Bg7 4. Nf3 d6 5. g3 O-O 6. Bg2 c6 7. O-O Qb6 {7...Bf5 is becoming the main line.} 8. Re1 {E62: King's Indian: Fianchetto: 6...c6 and Panno Variation (6...Nc6) without ...a6.} Bg4 9. h3 Bxf3 10. Bxf3 {White is slightly better.} Nfd7 {[%cal Bf6d7,Bd7e5,Be5c4][%mdl 32] [#]} 11. Rb1 $146 (11. e3 $11) ({Predecessor:} 11. e3 Na6 12. Rb1 e5 13. d5 c5 14. e4 Qd8 15. h4 Nc7 16. Kg2 f5 17. Bg5 {0-1 (50) Ivanchuk,V (2787)-Radjabov,T (2742) Kemer 2007 CBM 121 [Radjabov,T]}) 11... Qxd4 $17 12. Qxd4 Bxd4 13. Nb5 {[#]} Bb6 (13... cxb5 $6 14. Bxb7 Nb6 15. Rd1 $11) 14. Be3 Ne5 (14... cxb5 15. Bxb7 Bxe3 16. Bxa8 $17) 15. c5 dxc5 ({Resist} 15... cxb5 16. Bxb7 Nbd7 17. Bxa8 (17. cxb6 Rab8 $11) 17... Rxa8 18. cxb6 axb6 19. Ra1 $16) 16. Nc3 Nbd7 17. Na4 Nc4 18. Red1 Rfd8 19. Bg5 f6 20. Bg4 Nf8 21. Bh6 Ne5 22. Bxf8 Kxf8 ({Stronger than} 22... Rxf8 23. Be6+ Kh8 24. Rbc1 $17) 23. Be6 (23. e3 {might work better.}) 23... Rd6 $19 24. Bb3 c4 25. Bc2 Rad8 26. Kf1 Rxd1+ 27. Rxd1 Rxd1+ 28. Bxd1 {[%mdl 4096] Endgame KBN-KBN} Nd7 29. h4 $2 (29. b4 {was worth a try.}) 29... Ba5 30. Bc2 b5 31. Nc3 Bxc3 32. bxc3 {KB-KN} Nc5 {Prevents Be4.} 33. Ke1 e5 34. h5 Kg7 ({Don't blunder} 34... gxh5 $2 35. Bxh7 Kg7 36. Bf5 $19) 35. hxg6 hxg6 {[%cal Bh7g6,Bg6g5][%mdl 32]} 36. Kd2 g5 37. Ke3 Kf7 38. f4 $2 (38. g4) 38... a5 39. a3 Ke6 {[#] Hoping for ...exf4+.} 40. fxg5 fxg5 41. Kf3 e4+ 42. Kg4 Kf6 {...Ke5 is the strong threat.} 43. e3 Nd3 44. a4 {[%emt 1:47:15]} Nc5 {[%emt 1:48:12] Weighted Error Value: White=0.73/Black=0.10 (very precise)} 0-1

[Event "Skagerrak Kragero 2022"]
[Site "Kragero"]
[Date "2022.06.03"]
[Round "3.3"]
[White "Tarleva, Diana"]
[Black "Doluhanova, Evgeniya"]
[Result "1-0"]
[ECO "B33"]
[WhiteElo "2160"]
[BlackElo "2270"]
[Annotator "TA"]
[PlyCount "81"]
[EventDate "2022.06.02"]
[EventType "tourn"]
[EventCountry "NOR"]
[SourceTitle "playchess.com"]
[Source "ChessBase"]
[SourceQuality "1"]
[TimeControl "5400+30"]

{[%evp 20,81,18,0,27,6,32,-25,-22,-32,-6,-1,-3,-6,-13,-12,-16,-3,50,54,65,68,112,56,44,55,46,39,43,63,64,41,70,87,168,158,376,386,364,372,657,637,635,607,699,691,668,659,981,976,969,928,859,854,1494,1543,1579,944,1591,1464,1250,1073,1139,1144]} 1. e4 c5 2. Nf3 Nc6 3. d4 cxd4 4. Nxd4 Nf6 5. Nc3 e5 6. Ndb5 d6 7. Bg5 a6 8. Na3 b5 {[%emt 0:02:24]} 9. Nd5 {[%emt 0:10:43]} Be7 {[%emt 1:32:19]} 10. Nxe7 {[%emt 1:17:05]} Qxe7 {[%emt 1:32:00]} 11. c4 {[%emt 1:15:14]} Nd4 {[%emt 1:16:38] B33: Sicilian: Pelikan and Sveshnikov Variations.} 12. cxb5 {[%emt 0:27:18]} Qb7 {[%emt 0:22:50]} 13. Be3 {[%emt 1:00:38]} (13. f3 $14) 13... Qxe4 $11 {[%emt 1:10:37] Black has an edge.} 14. Qd3 {[%emt 0:37:44] [#]} Qd5 $146 {[%emt 0:42:25]} ({Predecessor:} 14... Bb7 15. Qxe4 Bxe4 16. Bxd4 exd4 17. bxa6 O-O 18. f3 Bf5 19. Bb5 {1-0 (60) Bussjaeger,J (1750)-Kubinger,F (1572) Passau 2000}) 15. Bxd4 exd4 (15... Qxd4 16. Qxd4 exd4 17. Bd3 $14) 16. Be2 Bf5 ({But not} 16... Qxg2 17. Bf3 Qh3 18. Bc6+ (18. Qe2+ Kd8 $17) 18... Ke7 19. Qxd4 $18 (19. Qe2+ Be6 $11)) 17. Qb3 Qxb3 ({Resist} 17... Qxg2 18. Bf3 Qg5 19. Bxa8 $16) 18. axb3 d3 ({Black should play} 18... O-O $11) 19. Bf3 $14 d5 20. Nc4 $1 {Strongly threatening Nd6+.} O-O 21. Nd6 (21. bxa6 $16 {aiming for Nb6.} Rfb8 22. Ne3) 21... Be4 22. bxa6 Rfb8 $1 23. Nb7 {Black must now prevent Kd2.} Rc8 $1 (23... Rxb7 $2 24. axb7 Rb8 25. Ra8 $18) 24. Kd2 Rc2+ 25. Ke3 Rxb2 26. Nc5 {[%csl LRd3,LRe4]} g5 {[#]} (26... d4+ $16 27. Kxd4 Bxf3 28. gxf3 Rd8+ 29. Ke5 Rd5+ 30. Kf4 g5+ 31. Kg3 Rxc5) 27. Rhb1 $1 $18 ({Don't take} 27. Nxe4 $6 dxe4 28. Bd1 Nd5+ 29. Kxe4 Nb4 $14) 27... d4+ $2 {This costs Black the game.} (27... Rc2 $16) 28. Kxd4 Rd8+ {[#]} 29. Ke3 $1 Nd5+ $2 (29... Rxb1 30. Rxb1 Bxf3) 30. Kxe4 {White is clearly winning.} Nc3+ 31. Ke3 {[%cal Be4e3,Be3d4,Bd4c5,Bc5b5,Bb5c4][%mdl 32]} Rxb1 32. Rxb1 Nxb1 33. Nxd3 {[%mdl 4096] Endgame KRN-KBN} Re8+ 34. Kd4 Rd8+ 35. Bd5 Na3 36. Kc5 Nb5 37. Kxb5 Rxd5+ 38. Kc4 Ra5 39. Nc5 Ra2 40. Na4 {[%emt 1:43:13]} Rc2+ {[%emt 1:49:19]} 41. Nc3 {[%emt 1:43:43] Weighted Error Value: White=0.09 (flawless) /Black=0.46} 1-0

[Event "Skagerrak Kragero 2022"]
[Site "Kragero"]
[Date "2022.06.03"]
[Round "3.4"]
[White "Gaboyan, Susanna"]
[Black "Verbin, Valentina"]
[Result "1/2-1/2"]
[ECO "A07"]
[WhiteElo "2247"]
[BlackElo "2067"]
[Annotator "TA"]
[PlyCount "74"]
[EventDate "2022.06.02"]
[EventType "tourn"]
[EventCountry "NOR"]
[SourceTitle "playchess.com"]
[Source "ChessBase"]
[SourceQuality "1"]
[TimeControl "5400+30"]

{[%evp 15,74,-8,-9,-16,0,-38,-35,-38,-22,-65,-61,-105,-90,-116,-13,-2,-3,-10,-9,-31,-4,-6,-17,-13,0,0,0,-3,2,-56,8,2,10,11,20,24,7,20,52,0,0,0,0,0,0,-1,0,-17,-12,-19,-18,-22,0,0,0,0,0,0,0,0,0]} 1. Nf3 d5 2. g3 g6 3. Bg2 Bg7 4. O-O e5 5. d3 Ne7 {[%cal Bg8e7,Be7d5,Bd5b6][%mdl 32]} 6. e4 O-O 7. Nbd2 Nbc6 8. exd5 Nxd5 {[%emt 1:29:27]} 9. Nc4 {[%emt 1:25:38] A07: Réti Opening: New York and Capablanca Systems.} Nb6 {[%emt 0:07:19] [#]} 10. Ne3 $146 {[%emt 1:18:02]} ({Predecessor:} 10. Nxb6 axb6 11. Re1 Be6 12. a3 Qd7 13. Ng5 Bg4 14. f3 Bf5 15. Be3 h6 16. Ne4 Be6 17. Bxh6 {½-½ (29) Hausrath,D (2499)-Lampert,J (2469) Germany 2015}) 10... Be6 {[%emt 0:14:39]} 11. Re1 {[%emt 0:20:28] Black is slightly better.} h6 {[%emt 0:17:27]} 12. h3 {[%emt 1:01:20]} (12. a4) 12... Qd7 13. Kh2 {[%emt 1:00:53]} (13. Ng4) 13... Rad8 {[%emt 1:14:18]} 14. Bd2 {[%emt 0:50:48][%cal Oe3g4]} e4 (14... f5 $17 {Hoping for ...e4.} 15. Nh4 Kh7) 15. dxe4 $11 {[%cal Ob2b3]} Bxb2 {[%emt 1:01:53] next ...Ne5 is good for Black.} 16. Rb1 {[%emt 0:50:34]} Bg7 {[%emt 1:01:24]} 17. c4 {[%emt 0:47:44]} Nxc4 {[%emt 0:42:51]} 18. Nxc4 Bxc4 19. Qc1 $1 b5 20. Bxh6 Nd4 21. Bg5 Bxa2 22. Rb2 {[#]} (22. Nxd4 $1 $11 Qxd4 23. Bxd8 Rxd8 24. Rxb5 Qxf2 25. Qe3 (25. Rf1 Qe2 $11) 25... Qxe3 26. Rxe3) 22... Nxf3+ (22... Bc4 $1 $15 23. Rd2 {[#]} c5 $1) 23. Bxf3 Bxb2 24. Qxb2 {Threatens to win with Rd1.} Qe6 $1 {Strongly threatening ...Qb3.} 25. Bh6 {[%csl Gh6][%cal Rb2g7] This bishop pair is nice.} f6 26. Bxf8 Kxf8 27. Qxb5 ({Better is} 27. Bg4 $1 $14 Qf7 28. Qxb5) 27... Qb6 $1 {The position is equal.} 28. Qe2 Bc4 29. Qc2 Bb3 30. Qb2 Bc4 31. Rb1 Rd3 {Against Qa3+} 32. Qb4+ Qxb4 33. Rxb4 {Be2 is the strong threat.} Rxf3 (33... Bb3 $5 {[%cal Rd3f3]} 34. Be2 Rc3 $15) 34. Rxc4 Rxf2+ 35. Kg1 Ra2 36. Rxc7 Ra4 37. Kf2 {[%emt 1:45:32]} Rxe4 {[%emt 1:47:33] Weighted Error Value: White=0.13 (very precise) /Black=0.16 (very precise)} 1/2-1/2

[Event "Skagerrak Kragero 2022"]
[Site "Kragero"]
[Date "2022.06.03"]
[Round "3.5"]
[White "Hryzlova, Sofiia"]
[Black "Skaslien, Ingrid"]
[Result "1-0"]
[ECO "E51"]
[WhiteElo "2157"]
[BlackElo "1884"]
[Annotator "TA"]
[PlyCount "93"]
[EventDate "2022.06.02"]
[EventType "tourn"]
[EventCountry "NOR"]
[SourceTitle "playchess.com"]
[Source "ChessBase"]
[SourceQuality "1"]
[TimeControl "5400+30"]

{[%evp 10,93,0,-8,5,-10,35,20,26,0,4,-15,-10,-15,10,-22,-26,-64,-72,-81,-85,-92,-77,-75,-75,-130,-108,-114,-85,-95,-89,-75,-61,-73,-66,-71,-75,-72,0,-43,0,-78,-53,-37,0,0,7,13,116,112,107,14,9,11,465,457,418,436,584,453,615,607,515,486,385,375,611,610,623,606,575,445,963,947,799,908,975,911,29986,29987,29983,29989,29989,29990,29990,29991]} 1. d4 Nf6 2. c4 e6 3. Nc3 Bb4 4. e3 O-O 5. Bd2 d5 6. Nf3 a6 {E51: Nimzo-Indian: Rubinstein: 4...0-0 5 Nf3 d5.} 7. Rc1 {is the new trend.} Nbd7 8. cxd5 exd5 {The position is equal.} 9. Bd3 Bd6 10. Qb3 c6 11. O-O Re8 12. Qc2 (12. e4 {with more complications.} Nxe4 13. Nxe4 dxe4 14. Ng5) 12... Qe7 {[#]} 13. Ne1 $146 ({Predecessor:} 13. e4 dxe4 14. Nxe4 Nxe4 15. Bxe4 Nf6 16. Bd3 h6 17. Rfe1 Be6 18. h3 {0-1 (31) Kozak,L (2244)-Sidorika,V (2331) Mykolaiv 2021}) 13... Ne4 14. Nxe4 dxe4 15. Be2 Qh4 {[%csl Gd6][%cal Rh4h2] [#]} 16. f4 Nf6 17. b4 (17. Qd1 $142) 17... Nd5 18. a3 Bf5 19. Qd1 Re6 {[#] aiming for ...Rh6.} 20. g3 Qh3 {[%cal Og7g5]} 21. Rf2 Nf6 22. Bf1 Qh6 23. Be2 Qh3 24. Bf1 Qh6 25. h3 (25. Be2 $1 $11) 25... Qg6 {[%cal Of5h3] Hoping for ...Bxh3!} ({Don't play} 25... Bxh3 26. Rh2 Bg4 27. Rxh6 $16) 26. g4 {Rg2 is the strong threat.} h5 {[%cal Rh5g4]} 27. g5 Nd5 {[%cal Od5f4]} 28. Ng2 {[%cal Be1g2,Bg2h4,Bh4g6,Bg6f4][%mdl 32]} f6 (28... Qh7 $11 {keeps the balance.}) 29. Nh4 $16 Qh7 30. g6 (30. Nxf5 $16 Qxf5 31. Qxh5) 30... Bxg6 $11 {White must now prevent ...Bf7.} 31. f5 $36 {[%mdl 2048] White is more active.} Bg3 $2 {[%mdl 8192] A mistake that costs the game.} 32. Nxg6 $18 ({Not} 32. fxe6 Bxh4 33. Re2 (33. Rg2 Bf5 $17) 33... Bf5 $17) 32... Bxf2+ 33. Kxf2 Ree8 34. Bc4 Rad8 35. h4 Rd7 36. Qe2 Qh6 37. Nf4 Kh7 $2 (37... Qh7 38. Qxh5 Qxh5 39. Nxh5 Kh7) 38. Bxd5 Rxd5 39. Nxd5 cxd5 40. Rg1 {Threatens to win with Rg6.} g5 (40... Kh8 $142 41. Rg6 Qh7) 41. fxg6+ Kg7 42. b5 Re6 43. Bb4 {Qc2 would kill now.} f5 44. Qc2 {White mates.} Rxg6 45. Qc7+ Kh8 46. Qc8+ Kh7 {[%emt 1:49:32]} 47. Qxf5 {[%emt 1:29:35] Weighted Error Value: White=0.21 (precise) /Black=0.65} 1-0

[Event "Skagerrak Kragero 2022"]
[Site "Kragero"]
[Date "2022.06.03"]
[Round "4.1"]
[White "Rakhmangulova, Anastasiya"]
[Black "Skaslien, Ingrid"]
[Result "1-0"]
[ECO "C07"]
[WhiteElo "2245"]
[BlackElo "1884"]
[Annotator "TA"]
[PlyCount "73"]
[EventDate "2022.06.02"]
[EventType "tourn"]
[EventCountry "NOR"]
[SourceTitle "playchess.com"]
[Source "ChessBase"]
[SourceQuality "1"]
[TimeControl "5400+30"]

{[%evp 9,73,18,35,15,30,34,76,18,51,51,50,43,68,52,56,46,60,40,54,43,186,183,184,170,208,155,212,194,226,221,373,237,227,233,234,224,412,408,405,287,413,388,394,401,383,321,328,302,448,433,527,527,526,506,1564,1417,2083,1262,29984,29985,29993,29994,29994,29995,29998,29999]} 1. e4 e6 2. d4 d5 3. Nd2 a6 4. Ngf3 c5 5. c3 Nc6 6. Bd3 {C07: French Tarrasch: 3...c5, 4 Ngf3 and 4 exd5 Qxd5.} Nf6 7. O-O Be7 8. exd5 ({Better is} 8. dxc5 $16 Bxc5 9. e5) 8... exd5 9. dxc5 Bxc5 {[#]} 10. Re1+ $146 ({Predecessor:} 10. Nb3 Be7 11. Nfd4 O-O 12. Nf5 Bxf5 13. Bxf5 a5 14. Nd4 Qb6 15. Qb3 Bc5 16. Qxb6 Bxb6 {½-½ (32) Verbytskiy,P (1722)-Kijac,M (2113) Topolcany 2020}) 10... Be6 11. Nb3 Bb6 12. Be3 O-O 13. h3 {Prevents Bg4.} h6 14. Qd2 {[%cal Oe3h6]} Nd7 {[#] Loses the game.} (14... Re8 $14) 15. Bxh6 $1 $18 {[%mdl 512]} Re8 16. Bg5 Qc8 17. Be3 Bc7 (17... Bxe3 $16 {was necessary.} 18. Qxe3 Qd8) 18. Bf4 b6 19. Nbd4 Nc5 $2 (19... Nxd4 {might work better.} 20. Nxd4 Nf6) 20. Bc2 {And now Bh6 would win.} Nxd4 21. Nxd4 ({Don't take} 21. cxd4 Ne4 22. Bxe4 Bxf4 23. Qxf4 dxe4) 21... Bxf4 22. Qxf4 {Black must now prevent Qh4.} Qb7 $2 (22... Bd7 {was worth a try.} 23. Rxe8+ Qxe8) 23. Qh4 g6 24. Nf3 {Threatens to win with Ng5.} Ne4 (24... f5 $142 25. Ng5 Qg7) 25. Bxe4 dxe4 26. Ng5 f5 27. Rad1 {[%cal Ba1d1,Bd1d4,Bd4d6,Bd6b6][%mdl 32]} Qe7 {Prevents Rd6.} 28. Rd4 {Red1 is the strong threat.} Bxa2 (28... Rad8 $142 29. Qh6 Qf6 30. Rxd8 Rxd8) 29. Red1 {[%cal Be1d1,Bd1d6,Bd6f6][%mdl 32] Strongly threatening Rd7.} Ra7 {Against Rd7} 30. Rd6 Qg7 31. Rxb6 {aiming for Rdd6.} e3 (31... Rb7 $142) 32. fxe3 {Rdd6 would kill now.} Bf7 33. Rdd6 Rxe3 34. Nxf7 {White mates.} Kxf7 35. Rf6+ Ke8 36. Rb8+ Kd7 {[%emt 1:47:04]} 37. Qd4+ {[%emt 1:10:56] Weighted Error Value: White=0.24 (precise) /Black=0.59} 1-0

[Event "Skagerrak Kragero 2022"]
[Site "Kragero"]
[Date "2022.06.03"]
[Round "4.2"]
[White "Verbin, Valentina"]
[Black "Hryzlova, Sofiia"]
[Result "0-1"]
[ECO "E04"]
[WhiteElo "2067"]
[BlackElo "2157"]
[Annotator "TA"]
[PlyCount "104"]
[EventDate "2022.06.02"]
[EventType "tourn"]
[EventCountry "NOR"]
[SourceTitle "playchess.com"]
[Source "ChessBase"]
[SourceQuality "1"]
[TimeControl "5400+30"]

{[%evp 11,104,21,24,-9,65,15,12,0,0,0,4,-77,-90,-84,-77,-77,-87,-83,-83,-93,-85,-91,-59,-85,-91,-94,-88,-92,-84,-98,-91,-95,-81,-99,-29,-25,-21,-21,-21,-21,0,-19,-16,-18,-8,-14,6,7,6,-15,-27,-56,-48,-56,-55,-81,-67,-77,-75,-293,-321,-950,-954,-875,-856,-767,-432,-1132,-1112,-1539,-1291,-1489,-1333,-1362,-1126,-1597,-881,-29968,-29958,-29973,-29974,-29973,-29975,-29974,-29976,-29970,-29977,-29977,-29978,-29978,-29979,-29974,-29973,-29990,-29991]} 1. d4 Nf6 2. c4 e6 3. Nf3 {[%cal Bg1f3,Bf3e5,Be5c4][%mdl 32]} d5 4. g3 dxc4 5. Bg2 a6 6. Ne5 c5 7. dxc5 {Black must now prevent Qxd8+. E04: Open Catalan: 5 Nf3.} Qa5+ (7... Qxd1+ $11 8. Kxd1 Bxc5) 8. Nc3 ({White should try} 8. Nd2 $14) 8... Qxc5 $11 9. Qa4+ {The position is equal.} Nbd7 10. Nxc4 {Hoping for Be3.} b5 {[#]} 11. Nxb5 $146 (11. Be3 $1 $11 {keeps the balance.} Qc7 12. Nxb5 axb5 13. Qxa8 bxc4 14. O-O) ({Predecessor:} 11. Qd1 Rb8 12. Na5 Qc7 13. Nb3 Bb7 14. f3 Be7 15. Bf4 e5 16. Be3 Nb6 17. Nd2 {0-1 (34) Kovalyov,A (2622)-Molner,M (2509) ICC INT 2014}) 11... Qxb5 $17 ({Don't play} 11... axb5 12. Qxa8 bxc4 13. Bc6 $11) 12. Qxb5 axb5 13. Bxa8 bxc4 14. Bc6 Ba6 15. Bd2 Bd6 16. b4 {[#]} Ke7 $1 {And now ...Ne5 would win.} 17. b5 Ne5 18. bxa6 Nxc6 19. Rc1 Ra8 {Black is more active.} 20. Rxc4 Rxa6 21. a4 Ne5 22. Rh4 Neg4 (22... Rb6 $17 {Threatens to win with ...Rb1+.} 23. O-O Rb2) 23. a5 $11 Bc5 24. O-O h5 {White should prevent ...Ne4.} 25. h3 Ne5 26. Rc1 Bd6 27. Ra4 Nfd7 28. f4 Bc5+ 29. Kg2 Nc6 30. e4 f6 31. Be1 e5 32. Rac4 Kd6 33. Rd1+ Bd4 34. Kf3 Nc5 (34... Nxa5 $2 35. Ra4 $18) 35. Bf2 $2 {This costs White the game.} (35. Rc2 $17 {keeps fighting.}) 35... Rxa5 $19 {Really sharp!} 36. g4 $2 (36. Bxd4 Nxd4+ 37. Rdxd4+ exd4 38. Rxd4+ Kc6 39. e5) 36... Ra3+ 37. Kg2 Ra2 38. Kg1 hxg4 39. hxg4 (39. fxe5+ $142 fxe5 40. Bxd4 Nxd4 41. Rcxd4+ exd4 42. Rxd4+ Ke6 43. hxg4) 39... Rxf2 40. Rcxd4+ exd4 41. Kxf2 Nxe4+ 42. Kf3 Kd5 {Strongly threatening ...g5.} 43. Rh1 g5 {( -> ...d3)} 44. Rh7 gxf4 {Black mates.} 45. Kxf4 Ne5 46. Ra7 d3 {[%cal Bd4d3,Bd3d2][%mdl 32]} 47. Ra5+ Kd4 48. Ra8 Nc4 49. Kf3 d2 50. Rd8+ Ncd6 51. Ke2 Kc3 52. Rd7 {[%emt 1:55:48]} Kc2 {[%emt 1:37:13] Weighted Error Value: White=0.73/Black=0.23 (precise)} 0-1

[Event "Skagerrak Kragero 2022"]
[Site "Kragero"]
[Date "2022.06.03"]
[Round "4.3"]
[White "Doluhanova, Evgeniya"]
[Black "Gaboyan, Susanna"]
[Result "1/2-1/2"]
[ECO "A48"]
[WhiteElo "2270"]
[BlackElo "2247"]
[Annotator "TA"]
[PlyCount "129"]
[EventDate "2022.06.02"]
[EventType "tourn"]
[EventCountry "NOR"]
[SourceTitle "playchess.com"]
[Source "ChessBase"]
[SourceQuality "1"]
[TimeControl "5400+30"]

{[%evp 13,129,-1,0,3,28,17,60,64,70,37,42,39,62,-11,91,-11,-9,-12,-7,-29,-43,-58,-69,-72,0,-39,-34,-34,-34,-27,-24,-44,-43,-77,-35,-45,-54,-45,14,14,14,14,14,14,14,14,17,16,60,14,16,16,16,15,14,0,6,0,16,0,16,16,20,20,21,6,6,6,23,6,6,0,0,0,7,0,0,0,0,0,0,0,0,0,0,0,0,0,0,0,0,0,0,0,0,0,0,0,0,0,0,0,0,0,0,0,0,0,0,0,0,0,0,0,0,0,0,0]} 1. d4 Nf6 2. Nf3 g6 3. Nbd2 d5 4. b4 Bg7 5. Bb2 O-O 6. e3 c6 7. c4 a5 8. b5 {A48: 1 d4 Nf6 2 Nf3 g6: Torre, London and Colle Systems.} Nbd7 9. Be2 c5 10. O-O {White is slightly better.} Re8 11. dxc5 Nxc5 {[#]} 12. cxd5 $146 ({Predecessor:} 12. Rc1 Bf5 13. Nb3 Na4 14. Be5 dxc4 15. Rxc4 Nb6 16. Rd4 Qc8 17. Qa1 a4 18. Nbd2 {1-0 (25) Tu,H (2483)-Russell,M (2220) Cebu 2007}) 12... Qxd5 13. Nc4 (13. Bd4 $14) 13... Be6 (13... Qxd1 $1 $11 {remains equal.} 14. Rfxd1 (14. Raxd1 Na4 $11) 14... Na4) 14. Rc1 (14. Nd4 $16) 14... Qxd1 $1 $11 15. Rfxd1 {[#] Hoping for Nb6.} Na4 {Against Nb6. aiming for ...Bxc4.} 16. Bd4 Ne4 17. Bxg7 Kxg7 18. Nd4 Nac3 ({Black should play} 18... Bxc4 $17 19. Bxc4 Nac3) 19. Nxe6+ (19. Nb6 $5 {[%cal Rb6a8]} Rad8 20. Nxe6+ fxe6 21. Rxd8 Rxd8 22. Bf3 $11) 19... fxe6 20. Re1 Nxa2 {Pair of Knights!} 21. Ra1 Nac3 22. Bf3 a4 23. h3 Rf8 24. Nb6 Ra5 {Threatens to win with ...Nd6.} 25. Bxe4 Rxb5 ({Black should try} 25... Nxe4 $15 26. Rxa4 Rxa4 27. Nxa4 Ra8) 26. Nd7 Rd8 {[#]} 27. Bxb7 Rxb7 28. Nc5 {[%csl LRa4,LRb7,LRe6]} Rb6 29. Ra3 Nd1 30. Rxa4 Rc6 31. Nb3 (31. Rd4 $14 {is more appropriate.} Rdc8 32. Nxe6+ (32. Rexd1 Rxc5 33. Kh2 h5 $14) 32... Rxe6 33. Rexd1) 31... e5 32. Ra5 Kf6 33. Nc5 Nc3 {Inhibits Ne4+.} 34. Kh2 {Rc1 is the strong threat.} Kf7 35. Nb3 Rb8 36. Nc1 e4 {Inhibits Nd3.} 37. Ne2 Rb2 38. Nxc3 Rxc3 {[%mdl 4096] Endgame KRR-KRR} 39. Kg3 Rcc2 40. Rf1 Kf6 41. Ra8 Rb5 {The position is equal.} 42. h4 Rf5 43. Ra6+ Ke5 44. Rfa1 {White threatens R1a5+ and mate.} e6 45. R1a5+ Kf6 46. Rxf5+ gxf5 {KR-KR} 47. Ra7 Kg6 48. Re7 Rc6 49. Kf4 h6 50. Kg3 Kf6 51. Rh7 Kg6 52. Ra7 Rc2 53. Re7 Kf6 54. Re8 Kf7 55. Ra8 Kg6 56. Ra6 Kf6 57. Ra7 Kg6 58. h5+ Kxh5 59. Ra6 Kg5 60. Rxe6 h5 {White must now prevent ...h4+.} 61. f4+ exf3 62. Kxf3 Rc4 63. Re8 h4 64. Rg8+ Kf6 {[%emt 1:57:47]} 65. Rf8+ {[%emt 2:02:42] Weighted Error Value: White=0.12 (very precise) /Black=0.10 (very precise)} 1/2-1/2

[Event "Skagerrak Kragero 2022"]
[Site "Kragero"]
[Date "2022.06.03"]
[Round "4.4"]
[White "Sagafos, Magne"]
[Black "Tarleva, Diana"]
[Result "1/2-1/2"]
[ECO "B07"]
[WhiteElo "2361"]
[BlackElo "2160"]
[Annotator "TA"]
[PlyCount "60"]
[EventDate "2022.06.02"]
[EventType "tourn"]
[EventCountry "NOR"]
[SourceTitle "playchess.com"]
[Source "ChessBase"]
[SourceQuality "1"]
[TimeControl "5400+30"]

{[%evp 9,60,22,31,34,33,24,32,27,30,35,22,0,84,77,102,100,102,101,183,159,191,149,198,172,216,113,115,119,114,0,35,-33,11,-56,26,16,16,19,277,-66,-41,-159,-148,-156,-145,-160,-54,-91,0,-135,0,-92,0]} 1. Nf3 d6 2. e4 Nf6 3. Nc3 c6 4. a4 e5 {[#]} 5. g3 $146 {[%cal Bg2g3,Bg3g4,Bg4g5][%mdl 32]} ({Predecessor:} 5. d4 Qc7 6. h3 Be7 7. dxe5 dxe5 8. Bd3 h6 9. O-O Be6 10. Qe2 Nbd7 11. Bc4 {1-0 (90) Kristovic,M (2281)-Sokac,M (2062) Osijek 2014}) 5... Bg4 6. h3 {B07: Pirc Defence: Miscellaneous Systems.} Bh5 7. Qe2 Nbd7 8. Bg2 {White is slightly better.} Qc7 9. g4 Bg6 10. h4 h5 (10... Nxg4 $2 11. h5 $18) (10... h6 $11 {remains equal.}) 11. g5 $36 {[%mdl 2048] Keeping Black busy.} Nh7 12. d4 Be7 13. Be3 f6 (13... Nhf8 $16) 14. Bh3 $18 Bf7 15. Rg1 {Hoping for g6.} Nhf8 (15... fxg5 $16 {was necessary.} 16. hxg5 Nhf8) 16. O-O-O Qa5 17. d5 (17. gxf6 $18 Bxf6 18. d5) 17... Nb6 $16 18. Bxb6 {0x0.00222cac29cbdp-1022s more active pieces. The black rooks are badly placed.} axb6 19. Nd2 (19. Bf5 $16) 19... Ng6 20. Qe3 (20. gxf6 $14 Nf4 21. Qe3 Bxf6 22. Nc4) 20... Qb4 21. Bf1 (21. gxf6 $11 Bxf6 22. Nf3) 21... Nxh4 (21... fxg5 $15 22. hxg5 h4) 22. gxf6 $1 $11 Bxf6 23. Nc4 b5 $2 {[%mdl 8192] [#]} (23... Rd8 $11 {and Black stays safe.}) 24. axb5 $2 (24. Nxd6+ $1 $18 {[%mdl 512]} Kf8 25. Nxf7 (25. Nxb7 cxd5 26. exd5 bxa4 $14) 25... Kxf7 26. Qb6 (26. Qh3 Rhd8 $16)) 24... cxb5 (24... Nf5 $5 25. exf5 cxd5 $15) 25. Na3 (25. Nb6 $15 Ra1+ 26. Kd2) 25... Rxa3 $17 26. bxa3 Qxa3+ 27. Kb1 {[#]} ({Don't blunder} 27. Kd2 $2 b4 28. Be2 (28. Bb5+ $2 Ke7 $19) 28... bxc3+) 27... Qb4+ ({Better is} 27... Nf3 $1 $17 {[%cal Oe8g8][%mdl 512] White must now prevent ...0-0!} 28. Rg2 (28. Qxf3 $2 Ke7 $19) 28... Qb4+ 29. Kc1 Nd4) 28. Kc1 $15 Qa3+ 29. Kb1 $1 ({But not} 29. Kd2 $2 b4 30. Bb5+ Ke7 $19) 29... Qb4+ 30. Kc1 {[%emt 1:40:34]} Qa3+ {[%emt 1:42:06] White used his chance.  Weighted Error Value: White=0.40/Black=0.51} (30... O-O $17 31. Rg3 Rc8) 1/2-1/2